bitfinex/quotes_BTCUSD_20210101
["timestamp","ask_amount","ask_price","bid_price","bid_amount"]
[1609534540492,1.57435871,29293.0,29292.0,0.645004]
[1609534540796,1.57435871,29293.0,29292.0,0.640004]
[1609534541288,1.36435871,29293.0,29292.0,0.640004]
[1609534541495,1.36435871,29293.0,29292.0,1.003281]
[1609534542195,1.36435871,29293.0,29292.0,0.640004]
[1609534542398,1.72763571,29293.0,29292.0,0.635004]
[1609534543102,0.33180302,29292.0,29287.0,1.6561]
[1609534543305,0.463277,29291.0,29287.0,1.4561]
[1609534543604,0.463277,29288.0,29287.0,0.7737]
[1609534543797,1.130847,29288.0,29287.0,0.7737]
[1609534543991,1.030847,29288.0,29287.0,0.7737]
[1609534544621,1.180847,29288.0,29287.0,0.7737]
[1609534544822,1.180847,29288.0,29287.0,0.7687]
[1609534545225,1.280847,29288.0,29287.0,0.7687]
[1609534545622,1.180847,29288.0,29287.0,0.7687]
[1609534545923,1.280847,29288.0,29287.0,0.7587]
[1609534546222,1.180847,29288.0,29287.0,0.7587]
[1609534547420,1.180847,29288.0,29287.0,0.7537]
[1609534550158,1.180847,29288.0,29287.0,0.7487]
[1609534550860,1.180847,29288.0,29287.0,0.7437]
[1609534552458,1.180847,29288.0,29287.0,0.7387]
[1609534555822,1.280847,29288.0,29287.0,0.7387]
[1609534557823,1.180847,29288.0,29287.0,0.7387]
[1609534558120,1.280847,29288.0,29287.0,0.7387]
[1609534558318,1.275847,29288.0,29287.0,0.7387]
[1609534558922,1.175847,29288.0,29287.0,0.7387]
[1609534559543,1.175847,29288.0,29287.0,0.8387]
[1609534559748,1.025847,29288.0,29287.0,0.8387]
[1609534560545,1.125847,29288.0,29287.0,0.7387]
[1609534560742,1.275847,29288.0,29287.0,0.7387]
[1609534561448,1.18986785,29288.0,29287.0,0.7387]
[1609534561845,1.28986785,29288.0,29287.0,0.7387]
[1609534565766,1.28986785,29288.0,29287.0,0.7337]
[1609534567083,1.53134139,29288.0,29286.0,0.0006]
[1609534567285,7.57180302,29287.0,29286.0,0.0002]
[1609534567488,7.15,29285.0,29284.0,0.0006]
[1609534567777,9.61271502,29285.0,29284.0,0.0006]
[1609534568079,10.29542502,29285.0,29284.0,0.0004]
[1609534568272,10.64357712,29285.0,29284.0,0.0004]
[1609534568473,0.19,29284.0,29282.0,0.09390509]
[1609534568730,0.19,29277.0,29275.0,0.001]
[1609534568930,6.05,29275.0,29274.0,0.0002]
[1609534569222,8.09542502,29275.0,29274.0,0.0002]
[1609534569428,9.563622,29275.0,29271.0,0.0104]
[1609534569629,2.563342,29270.0,29269.0,0.0008]
[1609534569925,0.363342,29269.0,29266.0,0.9644]
[1609534570227,0.363342,29267.0,29266.0,0.9644]
[1609534570560,0.363342,29267.0,29266.0,0.2677]
[1609534570561,1.80771502,29267.0,29266.0,0.2677]
[1609534571162,1.80771502,29267.0,29262.0,0.0008]
[1609534571361,3.24514502,29266.0,29262.0,0.0008]
[1609534571561,4.70271502,29266.0,29262.0,0.0008]
[1609534571762,0.363342,29264.0,29263.0,0.6153]
[1609534572066,1.292622,29264.0,29263.0,0.6153]
[1609534572261,1.192622,29264.0,29263.0,0.6153]
[1609534572458,1.65180873,29264.0,29263.0,0.6153]
[1609534572658,2.33451873,29264.0,29263.0,0.6153]
[1609534573870,1.73280873,29264.0,29263.0,1.6153]
[1609534574065,1.36946673,29264.0,29263.0,0.6153]
[1609534574288,1.36946673,29264.0,29263.0,0.97687603]
[1609534574485,1.36946673,29264.0,29263.0,2.42187603]
[1609534574687,1.36946673,29264.0,29263.0,0.363423]
[1609534574885,1.73288973,29264.0,29263.0,0.1]
[1609534575291,1.36946673,29264.0,29263.0,0.1]
[1609534575487,1.36946673,29264.0,29263.0,3.713423]
[1609534576293,1.36946673,29264.0,29263.0,3.913423]
[1609534576600,1.36946673,29264.0,29263.0,9.298323]
[1609534577386,1.36946673,29264.0,29263.0,9.468823]
[1609534577590,1.36946673,29264.0,29263.0,10.428823]
[1609534579189,1.36946673,29264.0,29263.0,5.028823]
[1609534579393,1.36946673,29264.0,29263.0,4.808323]
[1609534580302,1.36946673,29264.0,29263.0,6.458323]
[1609534580503,1.36946673,29264.0,29263.0,4.108323]
[1609534581410,1.36946673,29264.0,29263.0,7.808323]
[1609534586602,1.36946673,29264.0,29263.0,6.848323]
[1609534587003,1.36946673,29264.0,29263.0,2.813423]
[1609534587434,1.36946673,29264.0,29263.0,4.413423]
[1609534587904,1.36946673,29264.0,29263.0,4.408423]
[1609534588302,1.36946673,29264.0,29263.0,5.558423]
[1609534589104,1.36946673,29264.0,29263.0,4.608423]
[1609534589315,1.36946673,29264.0,29263.0,4.408423]
[1609534590323,1.36946673,29264.0,29263.0,6.058423]
[1609534590820,1.36946673,29264.0,29263.0,5.858423]
[1609534591026,1.36946673,29264.0,29263.0,4.608423]
[1609534591721,1.36946673,29264.0,29263.0,4.603423]
[1609534592626,1.36946673,29264.0,29263.0,4.603223]
[1609534593324,1.36946673,29264.0,29263.0,6.453223]
[1609534594324,1.36946673,29264.0,29263.0,4.408423]
[1609534594527,1.36946673,29264.0,29263.0,4.608423]
[1609534595155,1.36946673,29264.0,29263.0,6.758423]
[1609534597555,1.36946673,29264.0,29263.0,4.408423]
[1609534598156,1.36946673,29264.0,29263.0,5.758423]
[1609534599196,1.36946673,29264.0,29263.0,7.708423]
[1609534599390,1.36946673,29264.0,29263.0,8.043323]
[1609534599597,1.36946673,29264.0,29263.0,8.413323]
[1609534600291,1.36946673,29264.0,29263.0,8.078423]
[1609534600624,1.36946673,29264.0,29263.0,8.633323]
[1609534600823,1.6826853,29264.0,29263.0,5.533323]
[1609534601125,1.6826853,29264.0,29263.0,7.048423]
[1609534601427,1.6826853,29264.0,29263.0,7.383323]
[1609534601623,1.6826853,29264.0,29263.0,7.048423]
[1609534601823,1.6776853,29264.0,29263.0,3.598423]
[1609534602022,1.6776853,29264.0,29263.0,3.398423]
[1609534602225,1.6776853,29264.0,29263.0,4.628423]
[1609534602926,1.6776853,29264.0,29263.0,3.58472177]
[1609534603129,1.6776853,29264.0,29263.0,4.93472177]
[1609534605146,1.6776853,29264.0,29263.0,6.18472177]
[1609534605453,1.6776853,29264.0,29263.0,4.93472177]
[1609534605652,1.6776853,29264.0,29263.0,5.15472177]
[1609534606051,1.6776853,29264.0,29263.0,6.45472177]
[1609534607153,1.6776853,29264.0,29263.0,5.15472177]
[1609534607755,1.6776853,29264.0,29263.0,3.58472177]
[1609534608155,1.6776853,29264.0,29263.0,4.88472177]
[1609534608657,1.6776853,29264.0,29263.0,4.87472177]
[1609534609155,1.6776853,29264.0,29263.0,5.82472177]
[1609534610078,1.6776853,29264.0,29263.0,6.67472177]
[1609534610275,1.6776853,29264.0,29263.0,5.82472177]
[1609534610478,1.6776853,29264.0,29263.0,6.04472177]
[1609534611683,1.6776853,29264.0,29263.0,2.398423]
[1609534611884,1.6776853,29264.0,29263.0,2.178423]
[1609534612684,1.63165718,29264.0,29263.0,3.078423]
[1609534613834,1.63165718,29264.0,29263.0,2.178423]
[1609534614020,1.63165718,29264.0,29263.0,3.078423]
[1609534614522,1.63165718,29264.0,29263.0,2.178423]
[1609534614723,1.63165718,29264.0,29263.0,0.57]
[1609534614923,1.63165718,29264.0,29263.0,1.92]
[1609534615128,1.63165718,29264.0,29263.0,2.28629877]
[1609534615325,1.63165718,29264.0,29263.0,2.06629877]
[1609534616047,1.63165718,29264.0,29263.0,3.41629877]
[1609534616342,1.63165718,29264.0,29263.0,0.71629877]
[1609534616943,1.63165718,29264.0,29263.0,2.51629877]
[1609534617144,1.63165718,29264.0,29263.0,2.37]
[1609534617546,1.63165718,29264.0,29263.0,2.51629877]
[1609534618145,1.63165718,29264.0,29263.0,3.315]
[1609534618944,1.63165718,29264.0,29263.0,5.11129877]
[1609534619142,1.63165718,29264.0,29263.0,5.33129877]
[1609534619378,1.63165718,29264.0,29263.0,5.47413215]
[1609534619747,1.63165718,29264.0,29263.0,5.32783338]
[1609534620546,1.63165718,29264.0,29263.0,5.12783338]
[1609534621961,1.63165718,29264.0,29263.0,3.47783338]
[1609534622360,1.63165718,29264.0,29263.0,3.25783338]
[1609534622859,1.63261988,29264.0,29263.0,4.70783338]
[1609534623864,1.63261988,29264.0,29263.0,3.25783338]
[1609534624863,1.63261988,29264.0,29263.0,3.24283338]
[1609534625269,1.63261988,29264.0,29263.0,3.46783338]
[1609534625469,1.63261988,29264.0,29263.0,3.24283338]
[1609534625969,1.63261988,29264.0,29263.0,4.94283338]
[1609534626168,1.63261988,29264.0,29263.0,5.08913215]
[1609534627191,1.63261988,29264.0,29263.0,4.94283338]
[1609534627389,1.63261988,29264.0,29263.0,4.59283338]
[1609534628289,1.63261988,29264.0,29263.0,4.73913215]
[1609534628591,1.63261988,29264.0,29263.0,4.59283338]
[1609534628857,1.63261988,29264.0,29263.0,4.85283338]
[1609534629360,1.63261988,29264.0,29263.0,3.01]
[1609534629857,1.63261988,29264.0,29263.0,4.11]
[1609534630454,1.63261988,29264.0,29263.0,4.095]
[1609534630675,1.63261988,29264.0,29263.0,4.24129877]
[1609534630877,1.63261988,29264.0,29263.0,4.61129877]
[1609534631174,1.63261988,29264.0,29263.0,4.465]
[1609534631872,1.63261988,29264.0,29263.0,4.095]
[1609534632774,1.63261988,29264.0,29263.0,2.995]
[1609534633373,1.63261988,29264.0,29263.0,2.045]
[1609534633879,1.63261988,29264.0,29263.0,4.595]
[1609534634078,1.63261988,29264.0,29263.0,4.74129877]
[1609534634275,1.63261988,29264.0,29263.0,4.595]
[1609534634576,1.63261988,29264.0,29263.0,4.94129877]
[1609534635579,1.63261988,29264.0,29263.0,2.245]
[1609534635781,1.63261988,29264.0,29263.0,1.785]
[1609534636701,1.63261988,29264.0,29263.0,3.125]
[1609534636901,1.63261988,29264.0,29263.0,3.27129877]
[1609534637698,1.63261988,29264.0,29263.0,4.27129877]
[1609534638802,1.63261988,29264.0,29263.0,5.82129877]
[1609534639002,1.64349331,29264.0,29263.0,6.00629877]
[1609534639301,1.64349331,29264.0,29263.0,4.45629877]
[1609534639707,1.64349331,29264.0,29263.0,4.31]
[1609534640603,1.64349331,29264.0,29263.0,3.31]
[1609534641702,1.64349331,29264.0,29263.0,4.75629877]
[1609534643428,1.64349331,29264.0,29263.0,3.45629877]
[1609534643629,1.64349331,29264.0,29263.0,4.02629877]
[1609534643900,1.63349331,29264.0,29263.0,4.02629877]
[1609534644103,1.63349331,29264.0,29263.0,4.02129877]
[1609534644503,1.63349331,29264.0,29263.0,3.31]
[1609534647634,1.63349331,29264.0,29263.0,3.45129877]
[1609534648733,1.63349331,29264.0,29263.0,3.31]
[1609534648933,1.63349331,29264.0,29263.0,3.88]
[1609534649975,1.63349331,29264.0,29263.0,4.02129877]
[1609534650172,1.63349331,29264.0,29263.0,3.88]
[1609534650569,1.63349331,29264.0,29263.0,5.915]
[1609534650770,1.63349331,29264.0,29263.0,5.86129877]
[1609534650969,1.63349331,29264.0,29263.0,4.01129877]
[1609534651169,1.63349331,29264.0,29263.0,3.87]
[1609534652775,1.63349331,29264.0,29263.0,4.01129877]
[1609534653075,1.63349331,29264.0,29263.0,4.20629877]
[1609534653478,1.63349331,29264.0,29263.0,4.57305877]
[1609534653676,1.63349331,29264.0,29263.0,7.62305877]
[1609534653879,1.63349331,29264.0,29263.0,7.95795877]
[1609534654277,2.331e-05,29264.0,29263.0,9.53795877]
[1609534654488,0.00207739,29277.0,29264.0,0.3349]
[1609534654684,0.00207739,29277.0,29265.0,1.73077064]
[1609534654984,0.00207739,29277.0,29266.0,1.04567064]
[1609534655205,0.68313,29277.0,29271.0,0.707]
[1609534655405,0.68313,29277.0,29272.0,0.77276]
[1609534655598,0.68313,29277.0,29273.0,1.04567064]
[1609534655806,0.68313,29277.0,29274.0,1.04067064]
[1609534655999,0.68313,29277.0,29276.0,8.16577064]
[1609534656300,0.67313,29277.0,29276.0,8.2599]
[1609534656499,0.00207584,29285.0,29277.0,0.5299]
[1609534656705,0.00207584,29285.0,29278.0,1.05393422]
[1609534656911,0.00207477,29289.0,29279.0,2.10813422]
[1609534657105,0.68492477,29289.0,29280.0,1.73893422]
[1609534657304,0.67992477,29289.0,29283.0,0.2559]
[1609534657499,0.67992477,29289.0,29284.0,0.52403422]
[1609534657699,0.67992477,29289.0,29285.0,0.185]
[1609534657897,0.67992477,29289.0,29285.0,0.70903422]
[1609534658110,0.67992477,29289.0,29287.0,0.6822]
[1609534658296,0.67992477,29289.0,29287.0,1.20623422]
[1609534658697,0.67992477,29289.0,29288.0,0.52403422]
[1609534658992,0.67992477,29289.0,29288.0,7.45403422]
[1609534659888,0.67992477,29289.0,29288.0,7.78893422]
[1609534660091,0.67992477,29289.0,29288.0,8.39403422]
[1609534660827,0.67992477,29289.0,29288.0,8.72893422]
[1609534661022,0.67492477,29289.0,29288.0,8.72893422]
[1609534661328,0.67492477,29289.0,29288.0,8.39403422]
[1609534663425,0.67492477,29289.0,29288.0,8.72893422]
[1609534663724,0.67492477,29289.0,29288.0,8.39403422]
[1609534664425,0.69022826,29289.0,29288.0,8.39403422]
[1609534666550,0.69022826,29289.0,29288.0,8.31403422]
[1609534668156,0.69022826,29289.0,29288.0,0.94]
[1609534668352,0.69022826,29289.0,29287.0,0.6822]
[1609534669455,0.66942826,29289.0,29287.0,0.6822]
[1609534672377,0.66062742,29289.0,29287.0,0.6822]
[1609534673686,1.6651,29288.0,29287.0,0.6822]
[1609534673985,1.81412516,29288.0,29287.0,0.6822]
[1609534674130,2.11884793,29288.0,29287.0,0.6822]
[1609534674526,2.12384793,29288.0,29287.0,0.6822]
[1609534674730,2.18254916,29288.0,29287.0,0.6822]
[1609534675124,2.02384793,29288.0,29287.0,0.6822]
[1609534676261,2.01884793,29288.0,29287.0,0.6822]
[1609534676967,0.363424,29287.0,29285.0,0.6823]
[1609534677270,1.133524,29286.0,29285.0,0.6823]
[1609534677468,1.00874793,29286.0,29282.0,0.7589]
[1609534677666,0.64532393,29286.0,29282.0,0.7589]
[1609534678665,0.363424,29285.0,29282.0,0.7589]
[1609534678873,0.8151,29284.0,29282.0,0.7589]
[1609534679067,2.428524,29283.0,29282.0,1.2708]
[1609534679270,2.15384793,29283.0,29282.0,1.2708]
[1609534679468,2.15384793,29283.0,29282.0,0.7589]
[1609534680398,2.15884793,29283.0,29282.0,0.7589]
[1609534680604,2.15384793,29283.0,29282.0,0.7589]
[1609534680802,1.49374793,29283.0,29282.0,0.7589]
[1609534681109,1.67384793,29283.0,29282.0,0.7589]
[1609534684801,1.94384793,29283.0,29282.0,0.7589]
[1609534685214,1.93884793,29283.0,29282.0,0.7589]
[1609534685922,1.94384793,29283.0,29282.0,0.7589]
[1609534686120,1.93884793,29283.0,29282.0,0.7589]
[1609534687218,2.03884793,29283.0,29282.0,0.7589]
[1609534688416,1.93884793,29283.0,29282.0,0.7589]
[1609534690054,1.27374793,29283.0,29282.0,0.7589]
[1609534690256,1.96494993,29283.0,29282.0,0.7589]
[1609534690657,1.29984993,29283.0,29282.0,0.7589]
[1609534692504,2.06494993,29283.0,29282.0,0.7589]
[1609534693207,2.74793993,29283.0,29279.0,0.2866]
[1609534693407,3.613424,29280.0,29279.0,0.2866]
[1609534693602,4.98254916,29280.0,29279.0,0.2866]
[1609534693803,5.71065916,29280.0,29279.0,0.2866]
[1609534693999,6.58065916,29280.0,29279.0,0.2866]
[1609534695016,7.58065916,29280.0,29279.0,0.2866]
[1609534695220,6.58065916,29280.0,29278.0,0.643]
[1609534695419,7.19690302,29279.0,29278.0,0.643]
[1609534695728,7.19690302,29279.0,29277.0,0.6724]
[1609534695729,6.50022702,29278.0,29277.0,0.6724]
[1609534695920,8.49364095,29278.0,29277.0,0.6724]
[1609534696325,9.39364095,29278.0,29277.0,0.65833496]
[1609534697037,3.58864095,29278.0,29277.0,0.65833496]
[1609534697239,3.26183793,29278.0,29277.0,0.65833496]
[1609534697438,2.26183793,29278.0,29277.0,0.65833496]
[1609534698246,3.31183793,29278.0,29272.0,0.7228]
[1609534698480,1.663424,29273.0,29272.0,0.7228]
[1609534698671,1.06744916,29273.0,29272.0,0.7228]
[1609534698874,1.00874793,29273.0,29272.0,0.7228]
[1609534699975,1.00874793,29273.0,29272.0,0.7178]
[1609534700171,1.15874793,29273.0,29272.0,0.7178]
[1609534700676,1.25874793,29273.0,29272.0,0.6244]
[1609534701273,1.28474545,29273.0,29272.0,0.6244]
[1609534701471,1.18474545,29273.0,29272.0,0.6244]
[1609534708461,1.18474545,29273.0,29272.0,0.5994]
[1609534713883,1.18474545,29273.0,29272.0,0.56968621]
[1609534714082,1.18474545,29273.0,29272.0,0.55187191]
[1609534714895,0.67132145,29273.0,29272.0,2.52076391]
[1609534715907,0.67132145,29273.0,29272.0,2.85566391]
[1609534717403,0.67132145,29273.0,29272.0,2.52076391]
[1609534718007,0.67132145,29273.0,29272.0,2.85566391]
[1609534718411,0.67132145,29273.0,29272.0,2.52076391]
[1609534719079,0.67132145,29273.0,29272.0,2.71576391]
[1609534719343,0.67132145,29273.0,29272.0,2.85706268]
[1609534719641,0.67132145,29273.0,29272.0,2.71576391]
[1609534719940,0.67132145,29273.0,29272.0,3.03706268]
[1609534720445,0.67132145,29273.0,29272.0,3.23206268]
[1609534720640,0.67132145,29273.0,29272.0,3.09076391]
[1609534721601,0.64632145,29273.0,29272.0,1.58206268]
[1609534721801,0.64632145,29273.0,29272.0,1.24576391]
[1609534722304,0.64632145,29273.0,29272.0,0.76630191]
[1609534722609,1.77484245,29273.0,29272.0,0.55187191]
[1609534722911,6.09561245,29273.0,29272.0,0.55187191]
[1609534723510,2.38051245,29273.0,29272.0,0.55187191]
[1609534723715,3.33051245,29273.0,29272.0,0.55187191]
[1609534723904,3.53551245,29273.0,29272.0,0.55187191]
[1609534724721,4.68551245,29273.0,29272.0,0.55187191]
[1609534725314,3.53551245,29273.0,29272.0,0.55187191]
[1609534725911,2.28773245,29273.0,29272.0,0.55187191]
[1609534727518,2.18773245,29273.0,29272.0,0.55187191]
[1609534728920,1.98273245,29273.0,29272.0,0.55187191]
[1609534729717,3.33273245,29273.0,29272.0,0.55187191]
[1609534729918,3.69960245,29273.0,29272.0,0.55187191]
[1609534730116,3.75301245,29273.0,29272.0,0.55187191]
[1609534730347,2.20301245,29273.0,29272.0,0.55187191]
[1609534731850,2.40301245,29273.0,29272.0,0.55187191]
[1609534732044,2.33801245,29273.0,29272.0,0.55187191]
[1609534733653,2.23801245,29273.0,29272.0,0.55187191]
[1609534733849,2.11773245,29273.0,29272.0,0.55187191]
[1609534734269,1.98273245,29273.0,29272.0,0.55187191]
[1609534736001,1.69273245,29273.0,29272.0,0.55187191]
[1609534740738,1.79273245,29273.0,29272.0,0.55187191]
[1609534740936,2.05773245,29273.0,29272.0,0.55187191]
[1609534744146,1.95773245,29273.0,29272.0,0.55187191]
[1609534744947,1.95773245,29273.0,29272.0,0.73055191]
[1609534745151,1.59431145,29273.0,29272.0,1.57755191]
[1609534745364,1.32931145,29273.0,29272.0,1.68201791]
[1609534745567,1.32931145,29273.0,29272.0,4.73201791]
[1609534746567,1.32931145,29273.0,29272.0,1.68201791]
[1609534747161,1.32931145,29273.0,29272.0,1.34711791]
[1609534747360,1.32931145,29273.0,29272.0,1.68201791]
[1609534747966,1.52431145,29273.0,29272.0,1.82331668]
[1609534748172,1.52431145,29273.0,29272.0,1.68201791]
[1609534748365,1.52431145,29273.0,29272.0,1.82331668]
[1609534748571,1.52431145,29273.0,29272.0,3.58421791]
[1609534748868,1.52431145,29273.0,29272.0,1.98421791]
[1609534749134,1.52431145,29273.0,29272.0,1.64931791]
[1609534749301,1.32931145,29273.0,29272.0,1.98421791]
[1609534749600,1.32931145,29273.0,29272.0,2.32051668]
[1609534749804,1.32931145,29273.0,29272.0,2.12551668]
[1609534749999,1.32931145,29273.0,29272.0,1.98421791]
[1609534750204,1.32931145,29273.0,29272.0,1.64931791]
[1609534750400,1.32931145,29273.0,29272.0,3.23421791]
[1609534750596,1.52431145,29273.0,29272.0,3.37551668]
[1609534751042,1.32931145,29273.0,29272.0,3.37551668]
[1609534751446,1.32931145,29273.0,29272.0,4.82551668]
[1609534751743,1.32931145,29273.0,29272.0,5.02051668]
[1609534752243,1.32931145,29273.0,29272.0,4.68421791]
[1609534752442,1.32931145,29273.0,29272.0,4.82551668]
[1609534752843,1.32931145,29273.0,29272.0,3.57051668]
[1609534753142,1.32931145,29273.0,29272.0,3.23421791]
[1609534753343,1.32931145,29273.0,29272.0,3.37551668]
[1609534753544,1.52431145,29273.0,29272.0,3.23421791]
[1609534754146,1.52431145,29273.0,29272.0,2.89931791]
[1609534754344,1.32931145,29273.0,29272.0,4.93421791]
[1609534754544,1.32931145,29273.0,29272.0,5.07551668]
[1609534754762,1.32931145,29273.0,29272.0,4.93421791]
[1609534754963,1.32931145,29273.0,29272.0,4.59931791]
[1609534755164,1.32931145,29273.0,29272.0,2.89931791]
[1609534755366,1.49431145,29273.0,29272.0,3.99931791]
[1609534756064,1.49431145,29273.0,29272.0,2.89931791]
[1609534756265,1.49431145,29273.0,29272.0,1.64931791]
[1609534758375,1.49431145,29273.0,29272.0,3.19061668]
[1609534758572,1.49431145,29273.0,29272.0,3.04931791]
[1609534758771,1.49431145,29273.0,29272.0,3.19061668]
[1609534759577,1.32931145,29273.0,29272.0,5.09061668]
[1609534760595,1.32931145,29273.0,29272.0,3.38561668]
[1609534761091,1.32931145,29273.0,29272.0,3.19061668]
[1609534762391,1.32931145,29273.0,29272.0,1.64931791]
[1609534763395,1.32931145,29273.0,29272.0,1.71611791]
[1609534763599,1.52431145,29273.0,29272.0,1.71611791]
[1609534763794,1.53518213,29273.0,29272.0,1.71611791]
[1609534764925,1.34018213,29273.0,29272.0,1.71611791]
[1609534766270,1.34018213,29273.0,29272.0,2.61611791]
[1609534766470,1.34018213,29273.0,29272.0,2.61111791]
[1609534767774,1.34018213,29273.0,29272.0,2.80611791]
[1609534768072,1.34018213,29273.0,29272.0,3.23111791]
[1609534768476,1.08418213,29273.0,29272.0,3.03611791]
[1609534768676,1.08418213,29273.0,29272.0,2.33111791]
[1609534768878,1.08418213,29273.0,29272.0,2.13611791]
[1609534769082,1.08418213,29273.0,29272.0,1.95743791]
[1609534769479,1.08418213,29273.0,29272.0,1.53243791]
[1609534769679,1.08418213,29273.0,29272.0,1.42797191]
[1609534769897,1.44760313,29273.0,29272.0,1.42797191]
[1609534771295,1.66260313,29273.0,29272.0,1.42797191]
[1609534776318,1.66226213,29273.0,29272.0,1.42797191]
[1609534776810,1.66226213,29273.0,29272.0,1.42297191]
[1609534777414,1.76226213,29273.0,29272.0,1.42297191]
[1609534777714,1.76226213,29273.0,29272.0,1.50617191]
[1609534777914,1.66226213,29273.0,29272.0,1.50617191]
[1609534781672,1.44726213,29273.0,29272.0,1.50617191]
[1609534789300,1.08384113,29273.0,29272.0,1.50617191]
[1609534789898,1.44726213,29273.0,29272.0,1.50617191]
[1609534790200,1.29884113,29273.0,29272.0,1.50617191]
[1609534791221,1.66226213,29273.0,29272.0,1.50617191]
[1609534796151,2.62236213,29273.0,29272.0,1.50617191]
[1609534796355,2.83736213,29273.0,29272.0,0.99407191]
[1609534796555,2.17226213,29273.0,29272.0,0.4522]
[1609534797154,2.83736213,29273.0,29272.0,0.4522]
[1609534797366,2.94120902,29273.0,29272.0,0.4522]
[1609534797865,11.43531204,29273.0,29272.0,0.4522]
[1609534798059,11.43531204,29273.0,29272.0,0.138325]
[1609534798060,11.44031204,29273.0,29272.0,0.138325]
[1609534798261,0.363421,29269.0,29267.0,0.0002]
[1609534798463,1.64142402,29268.0,29267.0,0.0002]
[1609534798660,2.68339695,29268.0,29267.0,0.0002]
[1609534799257,3.23339695,29268.0,29267.0,0.0002]
[1609534800067,7.02063446,29268.0,29267.0,0.0002]
[1609534801070,7.02563446,29268.0,29267.0,0.0002]
[1609534802977,0.6651,29267.0,29266.0,6.278e-05]
[1609534803181,3.40229695,29267.0,29266.0,6.278e-05]
[1609534804283,2.73719695,29267.0,29266.0,6.278e-05]
[1609534804485,3.40229695,29267.0,29266.0,6.278e-05]
[1609534804889,2.73719695,29267.0,29266.0,6.278e-05]
[1609534805089,1.40539393,29267.0,29266.0,6.278e-05]
[1609534805835,1.83719695,29267.0,29266.0,6.278e-05]
[1609534806034,1.40539393,29267.0,29266.0,6.278e-05]
[1609534806334,1.68039393,29267.0,29266.0,6.278e-05]
[1609534807628,2.44549393,29267.0,29266.0,6.278e-05]
[1609534808428,1.78039393,29267.0,29266.0,6.278e-05]
[1609534808828,2.44549393,29267.0,29266.0,6.278e-05]
[1609534809262,1.68039393,29267.0,29266.0,6.278e-05]
[1609534809410,2.34549393,29267.0,29266.0,6.278e-05]
[1609534809616,1.68039393,29267.0,29266.0,6.278e-05]
[1609534810115,2.01219695,29267.0,29266.0,6.278e-05]
[1609534810812,2.11219695,29267.0,29266.0,6.278e-05]
[1609534811013,2.77729695,29267.0,29266.0,6.278e-05]
[1609534811257,2.01219695,29267.0,29266.0,6.278e-05]
[1609534811859,2.67729695,29267.0,29266.0,6.278e-05]
[1609534812166,3.01984695,29267.0,29266.0,6.278e-05]
[1609534812963,4.01984695,29267.0,29266.0,6.278e-05]
[1609534813158,3.01984695,29267.0,29266.0,6.278e-05]
[1609534813759,4.01984695,29267.0,29266.0,6.278e-05]
[1609534816681,4.01984695,29267.0,29263.0,0.0002]
[1609534816891,4.01984695,29267.0,29258.0,0.00143294]
[1609534816892,1.0,29260.0,29258.0,0.00143294]
[1609534817189,9.68116402,29259.0,29258.0,0.00143294]
[1609534817489,11.04014695,29259.0,29258.0,0.00143294]
[1609534817681,11.04014695,29259.0,29258.0,0.00123294]
[1609534817884,12.50943625,29259.0,29258.0,0.00123294]
[1609534818477,16.42736753,29259.0,29258.0,0.00123294]
[1609534820805,2.6151,29258.0,29216.0,0.49344666]
[1609534821011,0.368421,29254.0,29252.0,0.00021005]
[1609534821215,0.97602101,29253.0,29252.0,0.00021005]
[1609534821415,1.40539393,29253.0,29252.0,0.33511005]
[1609534821614,1.40539393,29253.0,29252.0,4.3849]
[1609534821615,1.55039393,29253.0,29252.0,4.3849]
[1609534821811,1.04197293,29253.0,29252.0,4.3849]
[1609534822009,1.04197293,29253.0,29252.0,4.489483]
[1609534822413,1.04197293,29253.0,29250.0,0.03346812]
[1609534822720,0.518421,29252.0,29248.0,0.00021005]
[1609534822910,0.87240393,29252.0,29248.0,0.00021005]
[1609534823112,0.87240393,29252.0,29247.0,1.32630125]
[1609534823308,0.71740393,29252.0,29247.0,1.32630125]
[1609534823608,0.71740393,29252.0,29248.0,0.33011005]
[1609534823809,0.82114078,29252.0,29248.0,0.00021005]
[1609534824011,0.82114078,29252.0,29248.0,0.3299]
[1609534824449,0.71740393,29252.0,29248.0,0.33011005]
[1609534824652,0.71740393,29252.0,29249.0,0.7399]
[1609534824855,0.71740393,29252.0,29250.0,0.3299]
[1609534825049,0.71740393,29252.0,29250.0,0.32511005]
[1609534825753,0.71740393,29252.0,29250.0,0.00021005]
[1609534825957,0.71740393,29252.0,29248.0,0.00021005]
[1609534826191,0.363421,29250.0,29248.0,0.00021005]
[1609534826491,0.35898293,29250.0,29247.0,0.51351005]
[1609534826689,0.35898293,29250.0,29248.0,0.109601]
[1609534826889,0.35898293,29250.0,29247.0,0.51351005]
[1609534827087,0.35898293,29250.0,29247.0,0.50851005]
[1609534828392,0.363449,29249.0,29247.0,0.50851005]
[1609534828588,0.72243193,29249.0,29247.0,0.50851005]
[1609534828991,0.72243193,29249.0,29247.0,0.00021005]
[1609534830223,0.72243193,29249.0,29246.0,1.38111005]
[1609534831219,0.72243193,29249.0,29246.0,1.70601005]
[1609534831420,0.72243193,29249.0,29247.0,0.3249]
[1609534831624,0.72243193,29249.0,29246.0,1.70101005]
[1609534831819,0.72243193,29249.0,29246.0,1.37611005]
[1609534832023,0.71743193,29249.0,29246.0,1.70101005]
[1609534832218,0.71743193,29249.0,29246.0,1.37611005]
[1609534832623,0.71743193,29249.0,29246.0,1.35111005]
[1609534833227,0.71243193,29249.0,29246.0,1.35111005]
[1609534833724,0.71243193,29249.0,29247.0,0.00020694]
[1609534835224,0.71243193,29249.0,29246.0,1.34631699]
[1609534837543,0.71243193,29249.0,29246.0,1.67121699]
[1609534837743,0.71243193,29249.0,29246.0,1.34631699]
[1609534838244,0.35898293,29249.0,29247.0,0.109608]
[1609534838443,0.35898293,29249.0,29247.0,0.43471171]
[1609534838650,0.35898293,29249.0,29248.0,3.71]
[1609534838944,0.35898293,29249.0,29248.0,4.36932]
[1609534839143,0.35898293,29249.0,29248.0,4.36952371]
[1609534839970,0.35898293,29249.0,29248.0,5.15692371]
[1609534840176,0.35898293,29249.0,29248.0,5.19039183]
[1609534840674,0.35898293,29249.0,29248.0,9.14039183]
[1609534840877,0.35898293,29249.0,29248.0,9.20277605]
[1609534842504,0.35898293,29249.0,29248.0,9.32008925]
[1609534843311,2.93e-06,29249.0,29248.0,9.32008925]
[1609534843516,0.01,29260.0,29256.0,0.3249]
[1609534843717,0.69353,29260.0,29259.0,8.279457]
[1609534843906,0.69353,29260.0,29259.0,8.31292512]
[1609534844111,0.69353,29260.0,29259.0,9.33292512]